Workbook

Sheet Berechnung
A1: Berechnung mit der Joback Methode für bis zu 10 Atomgruppen
A3: In der Tabelle "Daten" befindet sich eine Datensammlung und ein Beispiel Berechnung der Joback Methode
A4: In der Tabelle "Formeln" befinden sich die in Wikipedia angegeben Formeln. Die im VDI Wärmeatlas 2010 veröffentlichten Daten können abweichen
A7: Formel | B7: CH3-CO-CH3 | C7: Temperatur [K] | D7: 300
A8: Spalten-Nr. in Tabelle Daten | D8: 5 | E8: 6 | F8: 7 | G8: 8 | H8: 9 | I8: 10 | J8: 11 | K8: 12 | L8: 13 | M8: 14 | N8: 15 | O8: 16 | P8: 17 | Q8: 18 | R8: 19 | S8: 4 | T8: 3
A9: Lfd. Nr. | B9: Atomgruppen | C9: Anzahl Atomgruppen | D9: Tc [K] | E9: Pc [bar] | F9: Vc (cm3/mol] | G9: Tb [K] | H9: Tm [K] | I9: Hf [kJ/mol] | J9: Gf [kJ/mol] | K9: Cpa id. Gas [J/mol.K] | L9: Cpb | M9: Cpc | N9: Cpd | O9: Hm [kJ/mol] | P9: Hv [kJ/mol] | Q9: ηa Flüssig [Pa.s] | R9: ηb | S9: MG [g/mol] | T9: NA (Anzahl Atome)
A10: 1 | B10: –CH3 | C10: 2 | D10: =VLOOKUP($B10,Daten!$A$8:$S$63,D$8,FALSE) -> 0.0141 | E10: =VLOOKUP($B10,Daten!$A$8:$S$63,E$8,FALSE) -> -0.0012 | F10: =VLOOKUP($B10,Daten!$A$8:$S$63,F$8,FALSE) -> 65 | G10: =VLOOKUP($B10,Daten!$A$8:$S$63,G$8,FALSE) -> 23.58 | H10: =VLOOKUP($B10,Daten!$A$8:$S$63,H$8,FALSE) -> -5.1 | I10: =VLOOKUP($B10,Daten!$A$8:$S$63,I$8,FALSE) -> -76.45 | J10: =VLOOKUP($B10,Daten!$A$8:$S$63,J$8,FALSE) -> -43.96 | K10: =VLOOKUP($B10,Daten!$A$8:$S$63,K$8,FALSE) -> 19.5 | L10: =VLOOKUP($B10,Daten!$A$8:$S$63,L$8,FALSE) -> -0.00808 | M10: =VLOOKUP($B10,Daten!$A$8:$S$63,M$8,FALSE) -> 0.000153 | N10: =VLOOKUP($B10,Daten!$A$8:$S$63,N$8,FALSE) -> -9.67e-08 | O10: =VLOOKUP($B10,Daten!$A$8:$S$63,O$8,FALSE) -> 0.908 | P10: =VLOOKUP($B10,Daten!$A$8:$S$63,P$8,FALSE) -> 2.373 | Q10: =VLOOKUP($B10,Daten!$A$8:$S$63,Q$8,FALSE) -> 548.29 | R10: =VLOOKUP($B10,Daten!$A$8:$S$63,R$8,FALSE) -> -1.719 | S10: =VLOOKUP($B10,Daten!$A$8:$R$59,S$8,FALSE) -> 15 | T10: =VLOOKUP($B10,Daten!$A$8:$R$59,T$8,FALSE) -> 4
A11: 2 | B11: >C=O (Nichtring) | C11: 1 | D11: =VLOOKUP($B11,Daten!$A$8:$S$63,D$8,FALSE) -> 0.038 | E11: =VLOOKUP($B11,Daten!$A$8:$S$63,E$8,FALSE) -> 0.0031 | F11: =VLOOKUP($B11,Daten!$A$8:$S$63,F$8,FALSE) -> 62 | G11: =VLOOKUP($B11,Daten!$A$8:$S$63,G$8,FALSE) -> 76.75 | H11: =VLOOKUP($B11,Daten!$A$8:$S$63,H$8,FALSE) -> 61.2 | I11: =VLOOKUP($B11,Daten!$A$8:$S$63,I$8,FALSE) -> -133.22 | J11: =VLOOKUP($B11,Daten!$A$8:$S$63,J$8,FALSE) -> -120.5 | K11: =VLOOKUP($B11,Daten!$A$8:$S$63,K$8,FALSE) -> 6.45 | L11: =VLOOKUP($B11,Daten!$A$8:$S$63,L$8,FALSE) -> 0.067 | M11: =VLOOKUP($B11,Daten!$A$8:$S$63,M$8,FALSE) -> -3.57e-05 | N11: =VLOOKUP($B11,Daten!$A$8:$S$63,N$8,FALSE) -> 2.86e-09 | O11: =VLOOKUP($B11,Daten!$A$8:$S$63,O$8,FALSE) -> 4.189 | P11: =VLOOKUP($B11,Daten!$A$8:$S$63,P$8,FALSE) -> 8.972 | Q11: =VLOOKUP($B11,Daten!$A$8:$S$63,Q$8,FALSE) -> 340.35 | R11: =VLOOKUP($B11,Daten!$A$8:$S$63,R$8,FALSE) -> -0.35 | S11: =VLOOKUP($B11,Daten!$A$8:$R$58,S$8,FALSE) -> 28 | T11: =VLOOKUP($B11,Daten!$A$8:$R$58,T$8,FALSE) -> 2
A12: 3 | B12: 0 | C12: 0 | D12: 0 | E12: 0 | F12: 0 | G12: 0 | H12: 0 | I12: 0 | J12: 0 | K12: 0 | L12: 0 | M12: 0 | N12: 0 | O12: 0 | P12: 0 | Q12: 0 | R12: 0 | S12: 0 | T12: 0
A13: 4 | B13: 0 | C13: 0 | D13: =VLOOKUP($B12,Daten!$A$8:$S$63,D$8,FALSE) -> 0 | E13: =VLOOKUP($B12,Daten!$A$8:$S$63,E$8,FALSE) -> 0 | F13: =VLOOKUP($B12,Daten!$A$8:$S$63,F$8,FALSE) -> 0 | G13: =VLOOKUP($B12,Daten!$A$8:$S$63,G$8,FALSE) -> 0 | H13: =VLOOKUP($B12,Daten!$A$8:$S$63,H$8,FALSE) -> 0 | I13: =VLOOKUP($B12,Daten!$A$8:$S$63,I$8,FALSE) -> 0 | J13: =VLOOKUP($B12,Daten!$A$8:$S$63,J$8,FALSE) -> 0 | K13: =VLOOKUP($B12,Daten!$A$8:$S$63,K$8,FALSE) -> 0 | L13: =VLOOKUP($B12,Daten!$A$8:$S$63,L$8,FALSE) -> 0 | M13: =VLOOKUP($B12,Daten!$A$8:$S$63,M$8,FALSE) -> 0 | N13: =VLOOKUP($B12,Daten!$A$8:$S$63,N$8,FALSE) -> 0 | O13: =VLOOKUP($B12,Daten!$A$8:$S$63,O$8,FALSE) -> 0 | P13: =VLOOKUP($B12,Daten!$A$8:$S$63,P$8,FALSE) -> 0 | Q13: =VLOOKUP($B12,Daten!$A$8:$S$63,Q$8,FALSE) -> 0 | R13: =VLOOKUP($B12,Daten!$A$8:$S$63,R$8,FALSE) -> 0 | S13: =VLOOKUP($B12,Daten!$A$8:$S$63,S$8,FALSE) -> 0 | T13: =VLOOKUP($B12,Daten!$A$8:$S$63,T$8,FALSE) -> 0
A14: 5 | B14: 0 | C14: 0 | D14: =VLOOKUP($B14,Daten!$A$8:$S$63,D$8,FALSE) -> 0 | E14: =VLOOKUP($B14,Daten!$A$8:$S$63,E$8,FALSE) -> 0 | F14: =VLOOKUP($B14,Daten!$A$8:$S$63,F$8,FALSE) -> 0 | G14: =VLOOKUP($B14,Daten!$A$8:$S$63,G$8,FALSE) -> 0 | H14: =VLOOKUP($B14,Daten!$A$8:$S$63,H$8,FALSE) -> 0 | I14: =VLOOKUP($B14,Daten!$A$8:$S$63,I$8,FALSE) -> 0 | J14: =VLOOKUP($B14,Daten!$A$8:$S$63,J$8,FALSE) -> 0 | K14: =VLOOKUP($B14,Daten!$A$8:$S$63,K$8,FALSE) -> 0 | L14: =VLOOKUP($B14,Daten!$A$8:$S$63,L$8,FALSE) -> 0 | M14: =VLOOKUP($B14,Daten!$A$8:$S$63,M$8,FALSE) -> 0 | N14: =VLOOKUP($B14,Daten!$A$8:$S$63,N$8,FALSE) -> 0 | O14: =VLOOKUP($B14,Daten!$A$8:$S$63,O$8,FALSE) -> 0 | P14: =VLOOKUP($B14,Daten!$A$8:$S$63,P$8,FALSE) -> 0 | Q14: =VLOOKUP($B14,Daten!$A$8:$S$63,Q$8,FALSE) -> 0 | R14: =VLOOKUP($B14,Daten!$A$8:$S$63,R$8,FALSE) -> 0 | S14: =VLOOKUP($B14,Daten!$A$8:$S$63,S$8,FALSE) -> 0 | T14: =VLOOKUP($B14,Daten!$A$8:$S$63,T$8,FALSE) -> 0
A15: 6 | B15: 0 | C15: 0 | D15: =VLOOKUP($B15,Daten!$A$8:$S$63,D$8,FALSE) -> 0 | E15: =VLOOKUP($B15,Daten!$A$8:$S$63,E$8,FALSE) -> 0 | F15: =VLOOKUP($B15,Daten!$A$8:$S$63,F$8,FALSE) -> 0 | G15: =VLOOKUP($B15,Daten!$A$8:$S$63,G$8,FALSE) -> 0 | H15: =VLOOKUP($B15,Daten!$A$8:$S$63,H$8,FALSE) -> 0 | I15: =VLOOKUP($B15,Daten!$A$8:$S$63,I$8,FALSE) -> 0 | J15: =VLOOKUP($B15,Daten!$A$8:$S$63,J$8,FALSE) -> 0 | K15: =VLOOKUP($B15,Daten!$A$8:$S$63,K$8,FALSE) -> 0 | L15: =VLOOKUP($B15,Daten!$A$8:$S$63,L$8,FALSE) -> 0 | M15: =VLOOKUP($B15,Daten!$A$8:$S$63,M$8,FALSE) -> 0 | N15: =VLOOKUP($B15,Daten!$A$8:$S$63,N$8,FALSE) -> 0 | O15: =VLOOKUP($B15,Daten!$A$8:$S$63,O$8,FALSE) -> 0 | P15: =VLOOKUP($B15,Daten!$A$8:$S$63,P$8,FALSE) -> 0 | Q15: =VLOOKUP($B15,Daten!$A$8:$S$63,Q$8,FALSE) -> 0 | R15: =VLOOKUP($B15,Daten!$A$8:$S$63,R$8,FALSE) -> 0 | S15: =VLOOKUP($B15,Daten!$A$8:$S$63,S$8,FALSE) -> 0 | T15: =VLOOKUP($B15,Daten!$A$8:$S$63,T$8,FALSE) -> 0
A16: 7 | B16: 0 | C16: 0 | D16: =VLOOKUP($B16,Daten!$A$8:$S$63,D$8,FALSE) -> 0 | E16: =VLOOKUP($B16,Daten!$A$8:$S$63,E$8,FALSE) -> 0 | F16: =VLOOKUP($B16,Daten!$A$8:$S$63,F$8,FALSE) -> 0 | G16: =VLOOKUP($B16,Daten!$A$8:$S$63,G$8,FALSE) -> 0 | H16: =VLOOKUP($B16,Daten!$A$8:$S$63,H$8,FALSE) -> 0 | I16: =VLOOKUP($B16,Daten!$A$8:$S$63,I$8,FALSE) -> 0 | J16: =VLOOKUP($B16,Daten!$A$8:$S$63,J$8,FALSE) -> 0 | K16: =VLOOKUP($B16,Daten!$A$8:$S$63,K$8,FALSE) -> 0 | L16: =VLOOKUP($B16,Daten!$A$8:$S$63,L$8,FALSE) -> 0 | M16: =VLOOKUP($B16,Daten!$A$8:$S$63,M$8,FALSE) -> 0 | N16: =VLOOKUP($B16,Daten!$A$8:$S$63,N$8,FALSE) -> 0 | O16: =VLOOKUP($B16,Daten!$A$8:$S$63,O$8,FALSE) -> 0 | P16: =VLOOKUP($B16,Daten!$A$8:$S$63,P$8,FALSE) -> 0 | Q16: =VLOOKUP($B16,Daten!$A$8:$S$63,Q$8,FALSE) -> 0 | R16: =VLOOKUP($B16,Daten!$A$8:$S$63,R$8,FALSE) -> 0 | S16: =VLOOKUP($B16,Daten!$A$8:$S$63,S$8,FALSE) -> 0 | T16: =VLOOKUP($B16,Daten!$A$8:$S$63,T$8,FALSE) -> 0
A17: 8 | B17: 0 | C17: 0 | D17: =VLOOKUP($B17,Daten!$A$8:$S$63,D$8,FALSE) -> 0 | E17: =VLOOKUP($B17,Daten!$A$8:$S$63,E$8,FALSE) -> 0 | F17: =VLOOKUP($B17,Daten!$A$8:$S$63,F$8,FALSE) -> 0 | G17: =VLOOKUP($B17,Daten!$A$8:$S$63,G$8,FALSE) -> 0 | H17: =VLOOKUP($B17,Daten!$A$8:$S$63,H$8,FALSE) -> 0 | I17: =VLOOKUP($B17,Daten!$A$8:$S$63,I$8,FALSE) -> 0 | J17: =VLOOKUP($B17,Daten!$A$8:$S$63,J$8,FALSE) -> 0 | K17: =VLOOKUP($B17,Daten!$A$8:$S$63,K$8,FALSE) -> 0 | L17: =VLOOKUP($B17,Daten!$A$8:$S$63,L$8,FALSE) -> 0 | M17: =VLOOKUP($B17,Daten!$A$8:$S$63,M$8,FALSE) -> 0 | N17: =VLOOKUP($B17,Daten!$A$8:$S$63,N$8,FALSE) -> 0 | O17: =VLOOKUP($B17,Daten!$A$8:$S$63,O$8,FALSE) -> 0 | P17: =VLOOKUP($B17,Daten!$A$8:$S$63,P$8,FALSE) -> 0 | Q17: =VLOOKUP($B17,Daten!$A$8:$S$63,Q$8,FALSE) -> 0 | R17: =VLOOKUP($B17,Daten!$A$8:$S$63,R$8,FALSE) -> 0 | S17: =VLOOKUP($B17,Daten!$A$8:$S$63,S$8,FALSE) -> 0 | T17: =VLOOKUP($B17,Daten!$A$8:$S$63,T$8,FALSE) -> 0
A18: 9 | B18: 0 | C18: 0 | D18: =VLOOKUP($B18,Daten!$A$8:$S$63,D$8,FALSE) -> 0 | E18: =VLOOKUP($B18,Daten!$A$8:$S$63,E$8,FALSE) -> 0 | F18: =VLOOKUP($B18,Daten!$A$8:$S$63,F$8,FALSE) -> 0 | G18: =VLOOKUP($B18,Daten!$A$8:$S$63,G$8,FALSE) -> 0 | H18: =VLOOKUP($B18,Daten!$A$8:$S$63,H$8,FALSE) -> 0 | I18: =VLOOKUP($B18,Daten!$A$8:$S$63,I$8,FALSE) -> 0 | J18: =VLOOKUP($B18,Daten!$A$8:$S$63,J$8,FALSE) -> 0 | K18: =VLOOKUP($B18,Daten!$A$8:$S$63,K$8,FALSE) -> 0 | L18: =VLOOKUP($B18,Daten!$A$8:$S$63,L$8,FALSE) -> 0 | M18: =VLOOKUP($B18,Daten!$A$8:$S$63,M$8,FALSE) -> 0 | N18: =VLOOKUP($B18,Daten!$A$8:$S$63,N$8,FALSE) -> 0 | O18: =VLOOKUP($B18,Daten!$A$8:$S$63,O$8,FALSE) -> 0 | P18: =VLOOKUP($B18,Daten!$A$8:$S$63,P$8,FALSE) -> 0 | Q18: =VLOOKUP($B18,Daten!$A$8:$S$63,Q$8,FALSE) -> 0 | R18: =VLOOKUP($B18,Daten!$A$8:$S$63,R$8,FALSE) -> 0 | S18: =VLOOKUP($B18,Daten!$A$8:$S$63,S$8,FALSE) -> 0 | T18: =VLOOKUP($B18,Daten!$A$8:$S$63,T$8,FALSE) -> 0
A19: 10 | B19: 0 | C19: 0 | D19: =VLOOKUP($B19,Daten!$A$8:$S$63,D$8,FALSE) -> 0 | E19: =VLOOKUP($B19,Daten!$A$8:$S$63,E$8,FALSE) -> 0 | F19: =VLOOKUP($B19,Daten!$A$8:$S$63,F$8,FALSE) -> 0 | G19: =VLOOKUP($B19,Daten!$A$8:$S$63,G$8,FALSE) -> 0 | H19: =VLOOKUP($B19,Daten!$A$8:$S$63,H$8,FALSE) -> 0 | I19: =VLOOKUP($B19,Daten!$A$8:$S$63,I$8,FALSE) -> 0 | J19: =VLOOKUP($B19,Daten!$A$8:$S$63,J$8,FALSE) -> 0 | K19: =VLOOKUP($B19,Daten!$A$8:$S$63,K$8,FALSE) -> 0 | L19: =VLOOKUP($B19,Daten!$A$8:$S$63,L$8,FALSE) -> 0 | M19: =VLOOKUP($B19,Daten!$A$8:$S$63,M$8,FALSE) -> 0 | N19: =VLOOKUP($B19,Daten!$A$8:$S$63,N$8,FALSE) -> 0 | O19: =VLOOKUP($B19,Daten!$A$8:$S$63,O$8,FALSE) -> 0 | P19: =VLOOKUP($B19,Daten!$A$8:$S$63,P$8,FALSE) -> 0 | Q19: =VLOOKUP($B19,Daten!$A$8:$S$63,Q$8,FALSE) -> 0 | R19: =VLOOKUP($B19,Daten!$A$8:$S$63,R$8,FALSE) -> 0 | S19: =VLOOKUP($B19,Daten!$A$8:$S$63,S$8,FALSE) -> 0 | T19: =VLOOKUP($B19,Daten!$A$8:$S$63,T$8,FALSE) -> 0
B20: ΣGi | D20: =SUMPRODUCT($C$10:$C19,D10:D19) -> 0.0662 | E20: =SUMPRODUCT($C$10:$C19,E10:E19) -> 0.0007 | F20: =SUMPRODUCT($C$10:$C19,F10:F19) -> 192 | G20: =SUMPRODUCT($C$10:$C19,G10:G19) -> 123.91 | H20: =SUMPRODUCT($C$10:$C19,H10:H19) -> 51 | I20: =SUMPRODUCT($C$10:$C19,I10:I19) -> -286.12 | J20: =SUMPRODUCT($C$10:$C19,J10:J19) -> -208.42 | K20: =SUMPRODUCT($C$10:$C19,K10:K19) -> 45.45 | L20: =SUMPRODUCT($C$10:$C19,L10:L19) -> 0.05084 | M20: =SUMPRODUCT($C$10:$C19,M10:M19) -> 0.0002703 | N20: =SUMPRODUCT($C$10:$C19,N10:N19) -> -1.9054e-07 | O20: =SUMPRODUCT($C$10:$C19,O10:O19) -> 6.005 | P20: =SUMPRODUCT($C$10:$C19,P10:P19) -> 13.718 | Q20: =SUMPRODUCT($C$10:$C19,Q10:Q19) -> 1436.93 | R20: =SUMPRODUCT($C$10:$C19,R10:R19) -> -3.788 | S20: =SUMPRODUCT($C$10:$C19,S10:S19) -> 58 | T20: =SUMPRODUCT($C$10:$C19,T10:T19) -> 10
B21: Ergebnisse | D21: =Tcf(D20,G21,0) -> 500.559005 | E21: =Pcf(E20,T20,1) -> 48.02499605 | F21: =Vcf(F20,0) -> 209.5 | G21: =Tbf(G20,0) -> 322.11 | H21: =Tmf(H20,0) -> 173.5 | I21: =Hff(I20,0) -> -217.83 | J21: =Gff(J20,0) -> -154.54 | K21: =Cpf(K20,L20,M20,N20,D7,0) -> 75.32642 | O21: =Hmf(O20,0) -> 5.125 | P21: =Hvf(P20,0) -> 29.018 | Q21: =Visf(Q20,R20,S20,D7,0) -> 0.0002938257492
B22: CHEMCAD 6.5 | D22: 508.2 | E22: 47 | F22: 209 | G22: 329.4 | H22: 178.45 | I22: -217.15 | J22: -152.72 | K22: 74.93 | O22: 5.774 | P22: 29.121 | Q22: 0.000304 | S22: 58.08
A24: Bedienung: | B24: In B11 - B19 Gruppe wählen, Ergebnisse in Zeile22 lesen
A26: Kommentar: | B26: Die Erweiterung auf mehr als 10 Inkremente erfolgt durch
B27: 1. Einfügen neuer Zeile in Zeile 20
B28: 2. Zeile 11 in Zeile 13 kopiert
B29: 3. D19 nach D20 ziehen
B30: 4. D20 nach Spalte T ziehen
A32: Literatur: | B32: Joback-Methode – Wikipedia | D32: de.wikipedia.org/wiki/Joback-Methode
B33: de.wikipedia.org/wiki/Joback-Methode
B34: VDI Wärmeatlas 2010
A36: Software: | B36: CHEMCAD

Sheet Info
A1: Berechnung mit der Joback Methode
A2: Daten von Wikipedia | C2: Joback Tabelle aus https://de.wikipedia.org/wiki/Joback-Methode entnommen

Sheet Daten
A1: Joback Tabelle aus https://de.wikipedia.org/wiki/Joback-Methode entnommen | I1: 31.06.2015
A2: Beispiel Aceton
A3: 1 | B3: 2 | C3: 3 | D3: 4 | E3: 5 | F3: 6 | G3: 7 | H3: 8 | I3: 9 | J3: 10 | K3: 11 | L3: 12 | M3: 13 | N3: 14 | O3: 15 | P3: 16 | Q3: 17 | R3: 18 | S3: 19
A4: Gruppe | B4: N | C4: Z | D4: MG | E4: Tc | F4: Pc | G4: Vc | H4: Tb | I4: Tm | J4: Hf | K4: Gf | L4: Cpa | M4: Cpb | N4: Cpc | O4: Cpd | P4: Hm | Q4: Hv | R4: ηa | S4: ηb | T4: Bem | U4: Test
E5: Kritischer Punkt | H5: Phasenübergangs- | J5: Bildungs- | K5: Gibbs | L5: sepz. Wärmekapazität | P5: Schmelz- | Q5: Verdampfungs | R5: Dynamische | U5: Gruppe | V5: Index
H6: temperaturen | J6: Std. Enthalpie | L6: Ideales Gas | P6: enthalpien | R6: Flüssigviskosität | V6: 5
A7: Nicht-Ring-Jobackgruppe
A8: –CH3 | B8: 2 | C8: 4 | D8: 15 | E8: 0.0141 | F8: -0.0012 | G8: 65 | H8: 23.58 | I8: -5.1 | J8: -76.45 | K8: -43.96 | L8: 19.5 | M8: -0.00808 | N8: 0.000153 | O8: -9.67e-08 | P8: 0.908 | Q8: 2.373 | R8: 548.29 | S8: -1.719 | U8: –CH3 | V8: =VLOOKUP(U8,A8:S17,V6,FALSE) -> 0.0141
A9: –CH2– | C9: 3 | D9: 16 | E9: 0.0189 | F9: 0 | G9: 56 | H9: 22.88 | I9: 11.27 | J9: -20.64 | K9: 8.42 | L9: -0.909 | M9: 0.095 | N9: -5.44e-05 | O9: 1.19e-08 | P9: 2.59 | Q9: 2.226 | R9: 94.16 | S9: -0.199
A10: >CH– | C10: 2 | D10: 17 | E10: 0.0164 | F10: 0.002 | G10: 41 | H10: 21.74 | I10: 12.64 | J10: 29.89 | K10: 58.36 | L10: -23 | M10: 0.204 | N10: -0.000265 | O10: 1.2e-07 | P10: 0.749 | Q10: 1.691 | R10: -322.15 | S10: 1.187
A11: >C< | C11: 1 | D11: 18 | E11: 0.0067 | F11: 0.0043 | G11: 27 | H11: 18.25 | I11: 46.43 | J11: 82.23 | K11: 116.02 | L11: -66.2 | M11: 0.427 | N11: -0.000641 | O11: 3.01e-07 | P11: -1.46 | Q11: 0.636 | R11: -573.56 | S11: 2.307
A12: =CH2 | C12: 3 | D12: 19 | E12: 0.0113 | F12: -0.0028 | G12: 56 | H12: 18.18 | I12: -4.32 | J12: -9.63 | K12: 3.77 | L12: 23.6 | M12: -0.0381 | N12: 0.000172 | O12: -1.03e-07 | P12: -0.473 | Q12: 1.724 | R12: 495.01 | S12: -1.539
A13: =CH- | C13: 2 | D13: 20 | E13: 0.0129 | F13: -0.0006 | G13: 46 | H13: 24.96 | I13: 8.73 | J13: 37.97 | K13: 48.53 | L13: -8 | M13: 0.105 | N13: -9.63e-05 | O13: 3.56e-08 | P13: 2.691 | Q13: 2.205 | R13: 82.28 | S13: -0.242
A14: =C< | C14: 1 | D14: 21 | E14: 0.0117 | F14: 0.0011 | G14: 38 | H14: 24.14 | I14: 11.14 | J14: 83.99 | K14: 92.36 | L14: -28.1 | M14: 0.208 | N14: -0.000306 | O14: 1.46e-07 | P14: 3.063 | Q14: 2.138 | R14: 82.28 | S14: -0.243 | T14: ergänzt
A15: =C= | C15: 1 | D15: 22 | E15: 0.0026 | F15: 0.0028 | G15: 36 | H15: 26.15 | I15: 17.78 | J15: 142.14 | K15: 136.7 | L15: 27.4 | M15: -0.0557 | N15: 0.000101 | O15: -5.02e-08 | P15: 4.72 | Q15: 2.661 | R15: 82.28 | S15: -0.244
A16: ≡CH | C16: 2 | D16: 23 | E16: 0.0027 | F16: -0.0008 | G16: 46 | H16: 9.2 | I16: -11.18 | J16: 79.3 | K16: 77.71 | L16: 24.5 | M16: -0.0271 | N16: 0.000111 | O16: -6.78e-08 | P16: 2.322 | Q16: 1.155 | R16: 82.28 | S16: -0.245
A17: ≡C– | C17: 1 | D17: 24 | E17: 0.002 | F17: 0.0016 | G17: 37 | H17: 27.38 | I17: 64.32 | J17: 115.51 | K17: 109.82 | L17: 7.87 | M17: 0.0201 | N17: -8.33e-06 | O17: 1.39e-09 | P17: 4.151 | Q17: 3.302 | R17: 82.28 | S17: -0.246
A18: Summen | B18: =SUM(B8:B17) -> 2 | C18: =SUMPRODUCT($B$8:$B$17,C8:C17) -> 8 | D18: =SUMPRODUCT($B$8:$B$17,D8:D17) -> 30 | E18: =SUMPRODUCT($B$8:$B$17,E8:E17) -> 0.0282 | F18: =SUMPRODUCT($B$8:$B$17,F8:F17) -> -0.0024 | G18: 130 | H18: 47.16 | I18: -10.2 | J18: -152.9 | K18: -87.92 | L18: 39 | M18: -0.01616 | N18: 0.000306 | O18: -1.934e-07 | P18: 1.816 | Q18: 4.746 | R18: 1096.58 | S18: -3.438
A19: 0
A20: Ring Jobackgruppe
A21: –CH2– (Ring) | C21: 3 | D21: 14 | E21: 0.01 | F21: 0.0025 | G21: 48 | H21: 27.15 | I21: 7.75 | J21: -26.8 | K21: -3.68 | L21: -6.03 | M21: 0.0854 | N21: -8e-06 | O21: -1.8e-08 | P21: 0.49 | Q21: 2.398 | R21: 307.53 | S21: -0.798 | U21: –CH2– (Ring) | V21: =VLOOKUP(U21,A21:S25,V6,FALSE) -> 0.01
A22: >CH– (Ring) | C22: 2 | D22: 15 | E22: 0.0122 | F22: 0.0004 | G22: 38 | H22: 21.78 | I22: 19.88 | J22: 8.67 | K22: 40.99 | L22: -20.5 | M22: 0.162 | N22: -0.00016 | O22: 6.24e-08 | P22: 3.243 | Q22: 1.942 | R22: -394.29 | S22: 1.251
A23: >C< (Ring) | C23: 1 | D23: 16 | E23: 0.0042 | F23: 0.0061 | G23: 27 | H23: 21.32 | I23: 60.15 | J23: 79.72 | K23: 87.88 | L23: -90.9 | M23: 0.162 | N23: -0.00016 | O23: 4.69e-07 | P23: -1.373 | Q23: 0.644 | R23: -394.3 | S23: 1.251 | T23: ergänzt
A24: =CH- (Ring) | C24: 2 | D24: 17 | E24: 0.0082 | F24: 0.0011 | G24: 41 | H24: 26.73 | I24: 8.13 | J24: 2.09 | K24: 11.3 | L24: -2.14 | M24: 0.0574 | N24: -1.64e-06 | O24: -1.59e-08 | P24: 1.101 | Q24: 2.544 | R24: 259.65 | S24: -0.702
A25: =C< (Ring) | C25: 1 | D25: 18 | E25: 0.0143 | F25: 0.0008 | G25: 32 | H25: 31.01 | I25: 37.02 | J25: 46.43 | K25: 54.05 | L25: -8.25 | M25: 0.0574 | N25: -1.64e-06 | O25: 6.78e-08 | P25: 2.394 | Q25: 3.059 | R25: -245.74 | S25: 0.912
A26: Summen | B26: =SUM(B21:B25) -> 0 | C26: =SUMPRODUCT($B$21:$B$25,C21:C25) -> 0 | D26: =SUMPRODUCT($B$21:$B$25,D21:D25) -> 0 | E26: =SUMPRODUCT($B$21:$B$25,E21:E25) -> 0 | F26: 0 | G26: 0 | H26: 0 | I26: 0 | J26: 0 | K26: 0 | L26: 0 | M26: 0 | N26: 0 | O26: 0 | P26: 0 | Q26: 0 | R26: 0 | S26: 0
A28: Halogen Jobackgruppe
A29: –F | C29: 1 | D29: 19 | E29: 0.0111 | F29: -0.0057 | G29: 27 | H29: -0.03 | I29: -15.78 | J29: -251.92 | K29: -247.19 | L29: 26.5 | M29: -0.0913 | N29: 0.000191 | O29: -1.03e-07 | P29: 1.398 | Q29: -0.67 | R29: 625.45 | S29: -1.813 | T29: ergänzt | U29: –F | V29: =VLOOKUP(U29,A29:S32,V6,FALSE) -> 0.0111
A30: –Cl | C30: 1 | D30: 35.5 | E30: 0.0105 | F30: -0.0049 | G30: 58 | H30: 38.13 | I30: 13.55 | J30: -71.55 | K30: -64.31 | L30: 33.3 | M30: -0.0963 | N30: 0.000187 | O30: -9.96e-08 | P30: 2.515 | Q30: 4.532 | R30: 625.45 | S30: -1.814
A31: –Br | C31: 1 | D31: 80 | E31: 0.0133 | F31: 0.0057 | G31: 71 | H31: 66.86 | I31: 43.43 | J31: -29.48 | K31: -38.06 | L31: 28.6 | M31: 0.000136 | N31: -7.45e-08 | O31: -7.45e-08 | P31: 3.603 | Q31: 6.582 | R31: 738.91 | S31: -2.038
A32: –I | C32: 1 | D32: 192.2 | E32: 0.0068 | F32: -0.0034 | G32: 97 | H32: 93.84 | I32: 41.69 | J32: 21.06 | K32: 5.74 | L32: 32.1 | M32: 0.000126 | N32: -6.87e-08 | O32: -6.87e-08 | P32: 2.724 | Q32: 9.52 | R32: 809.55 | S32: -2.224
A33: Summen | B33: =SUM(B29:B32) -> 0 | C33: =SUMPRODUCT($B$29:$B$32,C29:C32) -> 0 | D33: =SUMPRODUCT($B$29:$B$32,D29:D32) -> 0 | E33: =SUMPRODUCT($B$29:$B$32,E29:E32) -> 0 | F33: 0 | G33: 0 | H33: 0 | I33: 0 | J33: 0 | K33: 0 | L33: 0 | M33: 0 | N33: 0 | O33: 0 | P33: 0 | Q33: 0 | R33: 0 | S33: 0
A35: Sauerstoff Jobackgruppe
A36: –OH (Alkohole) | C36: 2 | D36: 17 | E36: 0.0741 | F36: 0.0112 | G36: 28 | H36: 92.88 | I36: 44.45 | J36: -208.04 | K36: -189.2 | L36: 25.7 | M36: 0.000126 | N36: -6.87e-08 | O36: -9.88e-08 | P36: 2.406 | Q36: 16.826 | R36: 2173.72 | S36: -5.057 | U36: –OH (Alkohole) | V36: =VLOOKUP(U36,A36:S45,V6,FALSE) -> 0.0741
A37: –OH (Phenol) | C37: 2 | D37: 17 | E37: 0.024 | F37: 0.0184 | G37: -25 | H37: 76.34 | I37: 82.83 | J37: -221.65 | K37: -197.37 | L37: -2.81 | M37: -0.000116 | N37: 4.94e-08 | O37: 4.94e-08 | P37: 4.49 | Q37: 12.499 | R37: 3018.17 | S37: -7.314
A38: –O– (Nichtring) | C38: 1 | D38: 16 | E38: 0.0168 | F38: 0.0015 | G38: 18 | H38: 22.42 | I38: 22.23 | J38: -132.22 | K38: -105 | L38: 25.5 | M38: 0.000111 | N38: -5.48e-08 | O38: -5.48e-08 | P38: 1.188 | Q38: 2.41 | R38: 122.09 | S38: -0.386
A39: –O– (Ring) | C39: 1 | D39: 16 | E39: 0.0098 | F39: 0.0048 | G39: 13 | H39: 31.22 | I39: 23.05 | J39: -138.16 | K39: -98.22 | L39: 12.2 | M39: -0.0126 | N39: 6.03e-05 | O39: -3.86e-08 | P39: 5.879 | Q39: 4.682 | R39: 440.24 | S39: -0.953
A40: >C=O (Nichtring) | B40: 1 | C40: 2 | D40: 28 | E40: 0.038 | F40: 0.0031 | G40: 62 | H40: 76.75 | I40: 61.2 | J40: -133.22 | K40: -120.5 | L40: 6.45 | M40: 0.067 | N40: -3.57e-05 | O40: 2.86e-09 | P40: 4.189 | Q40: 8.972 | R40: 340.35 | S40: -0.35
A41: >C=O (Ring) | C41: 2 | D41: 28 | E41: 0.0284 | F41: 0.0028 | G41: 55 | H41: 94.97 | I41: 75.97 | J41: -164.5 | K41: -126.27 | L41: 30.4 | M41: -0.0829 | N41: 0.000236 | O41: -1.31e-07 | P41: 4.189 | Q41: 6.645 | R41: 340.35 | S41: -0.351 | T41: ergänzt
A42: O=CH– (Aldehyd) | C42: 3 | D42: 29 | E42: 0.0379 | F42: 0.003 | G42: 82 | H42: 72.24 | I42: 36.9 | J42: -162.03 | K42: -143.48 | L42: 30.9 | M42: -0.0336 | N42: 0.00016 | O42: -9.88e-08 | P42: 3.197 | Q42: 9.093 | R42: 740.92 | S42: -1.713
A43: –COOH (Säure) | C43: 4 | D43: 57 | E43: 0.0791 | F43: 0.0077 | G43: 89 | H43: 169.09 | I43: 155.5 | J43: -426.72 | K43: -387.87 | L43: 24.1 | M43: 0.0427 | N43: 8.04e-05 | O43: -6.87e-08 | P43: 11.051 | Q43: 19.537 | R43: 1317.23 | S43: -2.578
A44: –COO– (Ester) | C44: 3 | D44: 44 | E44: 0.0481 | F44: 0.0005 | G44: 82 | H44: 81.1 | I44: 53.6 | J44: -337.92 | K44: -301.95 | L44: 24.5 | M44: 0.0402 | N44: 4.02e-05 | O44: -4.52e-08 | P44: 6.959 | Q44: 9.633 | R44: 483.88 | S44: -0.966
A45: =O (andere oben) | C45: 1 | D45: 16 | E45: 0,0143 | F45: 0.0101 | G45: 36 | H45: -10.5 | I45: 2.08 | J45: -247.61 | K45: -250.83 | L45: 6.82 | M45: 0.0196 | N45: 1.27e-05 | O45: -1.78e-08 | P45: 3.624 | Q45: 5.909 | R45: 675.24 | S45: -1.34
A46: Summen | B46: =SUM(B36:B45) -> 1 | C46: =SUMPRODUCT($B$36:$B$45,C36:C45) -> 2 | D46: =SUMPRODUCT($B$36:$B$45,D36:D45) -> 28 | E46: =SUMPRODUCT($B$36:$B$45,E36:E45) -> 0.038 | F46: 0.0031 | G46: 62 | H46: 76.75 | I46: 61.2 | J46: -133.22 | K46: -120.5 | L46: 6.45 | M46: 0.067 | N46: -3.57e-05 | O46: 2.86e-09 | P46: 4.189 | Q46: 8.972 | R46: 340.35 | S46: -0.35
A48: Stickstoff Jobackgruppe
A49: –NH2 | C49: 3 | D49: 16 | E49: 0.0243 | F49: 0.0109 | G49: 38 | H49: 73.23 | I49: 66.89 | J49: -22.02 | K49: 14.07 | L49: 26.9 | M49: -0.0412 | N49: 0.000164 | O49: -9.76e-08 | P49: 3.515 | Q49: 10.788 | R49: 307.53 | S49: -0.798 | T49: ergänzt | U49: –NH2 | V49: =VLOOKUP(U49,A49:S57,V6,FALSE) -> 0.0243
A50: >NH (Nichtring) | C50: 2 | D50: 15 | E50: 0.0295 | F50: 0.0077 | G50: 35 | H50: 50.17 | I50: 52.66 | J50: 53.47 | K50: 89.39 | L50: -1.21 | M50: 0.0762 | N50: -4.86e-05 | O50: 1.05e-08 | P50: 5.099 | Q50: 6.436 | R50: 308.53 | S50: -0.799
A51: >NH (Ring) | C51: 2 | D51: 15 | E51: 0.013 | F51: 0.0114 | G51: 29 | H51: 52.82 | I51: 101.51 | J51: 31.65 | K51: 75.61 | L51: 11.8 | M51: -0.023 | N51: 0.000107 | O51: -6.28e-08 | P51: 7.49 | Q51: 6.93 | R51: 309.53 | S51: -0.8
A52: >N–(Nichtring) | C52: 1 | D52: 14 | E52: 0.0169 | F52: 0.0074 | G52: 9 | H52: 11.74 | I52: 48.84 | J52: 123.34 | K52: 163.16 | L52: -31.1 | M52: 0.227 | N52: -0.00032 | O52: 1.46e-07 | P52: 4.703 | Q52: 1.896 | R52: 310.53 | S52: -0.801
A53: –N= (Nichtrring) | C53: 1 | D53: 14 | E53: 0.0255 | F53: -0.0099 | G53: 9 | H53: 74.6 | I53: 48.84 | J53: 23.61 | K53: 163.16 | L53: -31.1 | M53: 0.0227 | N53: -3.2e-05 | O53: 1.46e-07 | P53: 4.703 | Q53: 3.335 | R53: 311.53 | S53: -0.802
A54: –N= (Ring) | C54: 1 | D54: 14 | E54: 0.0085 | F54: 0.0076 | G54: 34 | H54: 57.55 | I54: 68.4 | J54: 93.7 | K54: 119.66 | L54: 5.69 | M54: -0.00412 | N54: 0.000128 | O54: -8.88e-08 | P54: 3.649 | Q54: 6.528 | R54: 312.53 | S54: -0.803
A55: =NH | C55: 2 | D55: 15 | E55: 0.0085 | F55: 0.0076 | G55: 34 | H55: 83.08 | I55: 68.91 | J55: 93.7 | K55: 119.66 | L55: 5.69 | M55: -0.00412 | N55: 0.000128 | O55: -8,88-8 | P55: 3.649 | Q55: 12.169 | R55: 313.53 | S55: -0.804
A56: –CN | C56: 2 | D56: 26 | E56: 0.0496 | F56: -0.0101 | G56: 91 | H56: 125.66 | I56: 59.89 | J56: 88.43 | K56: 89.22 | L56: 36.5 | M56: -0.0733 | N56: 0.000184 | O56: -1.03e-07 | P56: 2.414 | Q56: 12.851 | R56: 314.53 | S56: -0.805
A57: –NO2 | C57: 3 | D57: 46 | E57: 0.0437 | F57: 0.0064 | G57: 91 | H57: 152.54 | I57: 127.24 | J57: -66.57 | K57: -16.83 | L57: 25.9 | M57: -0.00374 | N57: 0.000129 | O57: -8.88e-08 | P57: 9.679 | Q57: 16.738 | R57: 315.53 | S57: -0.806
A58: Summen | B58: =SUM(B49:B57) -> 0 | C58: =SUMPRODUCT($B$49:$B$57,C49:C57) -> 0 | D58: =SUMPRODUCT($B$49:$B$57,D49:D57) -> 0 | E58: =SUMPRODUCT($B$49:$B$57,E49:E57) -> 0 | F58: 0 | G58: 0 | H58: 0 | I58: 0 | J58: 0 | K58: 0 | L58: 0 | M58: 0 | N58: 0 | O58: 0 | P58: 0 | Q58: 0 | R58: 0 | S58: 0
A60: Schwefel Jobackgruppe
A61: –SH | C61: 2 | D61: 33 | E61: 0.0031 | F61: 0.0084 | G61: 63 | H61: 63.56 | I61: 20.09 | J61: -17.33 | K61: -22.99 | L61: 35.3 | M61: -0.0758 | N61: 0.000185 | O61: -1.03e-07 | P61: 2.36 | Q61: 6.884 | R61: 307.53 | S61: -0.798 | T61: ergänzt | U61: –SH | V61: =VLOOKUP(U61,A61:S63,V6,FALSE) -> 0.0031
A62: –S– (Nichtring) | C62: 1 | D62: 32 | E62: 0.0119 | F62: 0.0049 | G62: 54 | H62: 68.78 | I62: 34.4 | J62: 41.87 | K62: 33.12 | L62: 19.6 | M62: -0.00561 | N62: 4.02e-05 | O62: -2.76e-08 | P62: 4.13 | Q62: 6.817 | R62: 308.53 | S62: -0.799
A63: –S– (Ring) | C63: 1 | D63: 32 | E63: 0.0019 | F63: 0.0051 | G63: 38 | H63: 52.1 | I63: 79.93 | J63: 39.1 | K63: 27.76 | L63: 16.7 | M63: 0.00481 | N63: 2.77e-05 | O63: -2.11e-08 | P63: 1.557 | Q63: 5.984 | R63: 309.53 | S63: -0.8
A64: Summen | B64: =SUM(B61:B63) -> 0 | C64: =SUMPRODUCT($B$61:$B$63,C61:C63) -> 0 | D64: =SUMPRODUCT($B$61:$B$63,D61:D63) -> 0 | E64: =SUMPRODUCT($B$61:$B$63,E61:E63) -> 0 | F64: 0 | G64: 0 | H64: 0 | I64: 0 | J64: 0 | K64: 0 | L64: 0 | M64: 0 | N64: 0 | O64: 0 | P64: 0 | Q64: 0 | R64: 0 | S64: 0
A65: Gesamt-Summen | B65: =B18+B26+B33+B46+B64 -> 3 | C65: =C18+C26+C33+C69+C46+C58+C64 -> 10 | D65: 58 | E65: 0.0662 | F65: 0.0007 | G65: 192 | H65: 123.91 | I65: 51 | J65: -286.12 | K65: -208.42 | L65: 45.45 | M65: 0.05084 | N65: 0.0002703 | O65: -1.9054e-07 | P65: 6.005 | Q65: 13.718 | R65: 1436.93 | S65: -3.788
B66: N | C66: NA | D66: MG | E66: Tc | F66: Pc | G66: Vc | H66: Tb | I66: Tm | J66: Hf | K66: Gf | L66: a | M66: b | N66: c | O66: d | P66: Hm | Q66: Hv | R66: a | S66: b
A67: Ergebnisse (vba) | B67: =B65 -> 3 | C67: 10 | D67: =D65 -> 58 | E67: =Tcf(E65,H67,0) -> 500.559005 | F67: =Pcf(F65,C65,0) -> 4802499.605 | G67: =Vcf(G65,0) -> 209.5 | H67: =Tbf(H65,0) -> 322.11 | I67: =Tmf(I65,0) -> 173.5 | J67: =Hff(J65,0) -> -217.83 | K67: =Gff(K65,0) -> -154.54 | L67: =Cpf(L65,M65,N65,O65,B68,0) -> 75.32642 | P67: =Hmf(P65,0) -> 5.125 | Q67: =Hvf(Q65,0) -> 29.018 | R67: =Visf(R65,S65,D67,B68,0) -> 0.0002938257492
A68: Temperatur K | B68: 300
A70: Berechnung Aceton | B70: aus | C70: https://de.wikipedia.org/wiki/Joback-Methode | H70: Strukturformel:
A75: Aceton (Propanon) ist das einfachste Keton und wird nach der Joback-Methode in drei Gruppen aufgeteilt: Zwei Methylgruppen (–CH3) und eine Ketogruppe (C=O). Da die Methylgruppe zweimal vorkommt, wird ihr Beitrag doppelt addiert.
B77: Daten aus https://de.wikipedia.org/wiki/Joback-Method | M77: Datenbanken
A78: Eigenschaft | B78: Anzahl | C78: Beitrag | D78: Anzahl | E78: Beitrag | F78: ΣGi | G78: Berechneter Wert | H78: Einheit | I78: Excel Berechnung
B79: der Gruppen | D79: der Gruppen | I79: SGi | J79: Wert | K79: Einheit | L79: VBA Funktionen | M79: https://de.wikipedia.org/wiki/Aceton | N79: CHEMCAD (DIPPR)
A80: Tc | B80: 2 | C80: 0.0141 | D80: 1 | E80: 0.038 | F80: 0.0662 | G80: 500.559 | H80: K | I80: =B80*C80+D80*E80 -> 0.0662 | J80: =J83/(0.584+0.965*I80-I80^2) -> 500.559005 | K80: K | L80: =Tcf(I80,L83,0) -> 500.559005 | M80: 508.15 | N80: 508.15
A81: Pc | B81: 2 | C81: -0.0012 | D81: 1 | E81: 0.0031 | F81: 0.0007 | G81: 48.025 | H81: bar | I81: =B81*C81+D81*E81 -> 0.0007 | J81: =1/(0.113+0.0032*B98-I81)^2 -> 48.02499605 | K81: =H81 -> bar | L81: =Pcf(I81,B98,0) -> 4802499.605 | M81: 47582 | N81: 47.015
A82: Vc | B82: 2 | C82: 65 | D82: 1 | E82: 62 | F82: 192 | G82: 209.5 | H82: cm3/mol | I82: 192 | J82: =17.5+I82 -> 209.5 | K82: cm3/mol | L82: =Vcf(I82,0) -> 209.5 | M82: =1/4.63*1000 -> 215.9827214 | N82: 209
A83: Tb | B83: 2 | C83: 23.58 | D83: 1 | E83: 76.75 | F83: 123.91 | G83: 322.11 | H83: K | I83: 123.91 | J83: =I83+198.2 -> 322.11 | K83: K | L83: =Tbf(I83,0) -> 322.11 | M83: =56+273.15 -> 329.15 | N83: 329.4
A84: Tm | B84: 2 | C84: -5.1 | D84: 1 | E84: 61.2 | F84: 51 | G84: 173.5 | H84: K | I84: 51 | J84: =122.5+I84 -> 173.5 | K84: K | L84: =Tmf(I84,0) -> 173.5 | M84: =-95+273.15 -> 178.15 | N84: 178.45
A85: Hf | B85: 2 | C85: -76.45 | D85: 1 | E85: -133.22 | F85: -286.12 | G85: -217.83 | H85: kJ/mol | I85: =B85*C85+D85*E85 -> -286.12 | J85: =68.29+I85 -> -217.83 | K85: kJ/mol | L85: =Hff(I85,0) -> -217.83 | M85: -218.5 | N85: =-3738.81*58/1000 -> -216.85098
A86: Gf | B86: 2 | C86: -43.96 | D86: 1 | E86: -120.5 | F86: -208.42 | G86: -154.54 | H86: kJ/mol | I86: -208.42 | J86: =53.88+I86 -> -154.54 | K86: kJ/mol | L86: =Gff(I86,0) -> -154.54 | N86: =-2629.48*58/1000 -> -152.50984
A87: Cpa | B87: 2 | C87: 19.5 | D87: 1 | E87: 6.45 | F87: 45.5 | I87: 45.45
A88: Cpb | B88: 2 | C88: -0.00808 | D88: 1 | E88: 0.067 | F88: 0.0508 | I88: 0.05084
A89: Cpc | B89: 2 | C89: 0.000153 | D89: 1 | E89: -3.57e-05 | F89: 0.00027 | I89: 0.0002703
A90: Cpd | B90: 2 | C90: -9.67e-08 | D90: 1 | E90: 2.86e-09 | F90: -1.91e-07 | I90: -1.9054e-07
A91: Cp | B91: T | C91: 300 | D91: K | G91: 75.3264 | H91: J/(mol·K) | J91: =I87-37.93+(I88+0.21)*C91+(I89-0.000391)*C91^2+(I90+0.000000206)*C91^3 -> 75.32642 | K91: =H91 -> J/(mol·K) | L91: =Cpf(I87,I88,I89,I90,C91,0) -> 75.32642 | M91: 125.45 | N91: =2.1795*58 -> 126.411
A92: Hm | B92: 2 | C92: 0.908 | D92: 1 | E92: 4.189 | F92: 6.005 | G92: 5.125 | H92: kJ/mol | I92: 6.005 | J92: =-0.88+I92 -> 5.125 | K92: =H92 -> kJ/mol | L92: =Hmf(I92,0) -> 5.125 | M92: 5.72 | N92: =99.415*58/1000 -> 5.76607
A93: Hv | B93: 2 | C93: 2.373 | D93: 1 | E93: 8.972 | F93: 13.718 | G93: 209.8854 | H93: kJ/mol | I93: 13.718 | J93: =15.3+I93 -> 29.018 | K93: =H93 -> kJ/mol | L93: =Hvf(I93,0) -> 29.018 | M93: 29.1 | N93: =538*58/1000 -> 31.204
A94: ηa | B94: 2 | C94: 548.29 | D94: 1 | E94: 340.35 | F94: 1436.93 | I94: 1436.93
A95: ηb | B95: 2 | C95: -1.719 | D95: 1 | E95: -0.35 | F95: -3.788 | I95: -3.788
A96: η | B96: T | C96: 300 | D96: K | G96: 0.0002942 | H96: Pa s | J96: =B97*EXP((I94-597.82)/C96+I95-11.202) -> 0.0002938257492 | K96: =H96 -> Pa s | L96: =Visf(I94,I95,B97,C91,0) -> 0.0002938257492 | N96: 0.0003015
A97: MG | B97: =2*15+12+16 -> 58 | C97: g/mol
A98: NA | B98: 10
A101: Kommentar:
A102: Die Daten wurden der Seite | C102: https://de.wikipedia.org/wiki/Joback-Methode | G102: durch Kopieren entnommen.
A103: Die Zahlen müssen danach in für Excel lesbare Zahlen umgewandelt werden, indem das lange - Zeichen durch ein kurzes - Zeichen ersetzt wird.
A104: Dazu wird die Funktion "Suchen und Auswählen"
A116: verwendet.

Sheet Formeln
A1: Berechnungsmethoden aus https://de.wikipedia.org/wiki/Joback-Methode
A39: Anm. in | B39: https://en.wikipedia.org/wiki/Joback_method | F39: werden Maßeinheiten angegeben

Sheet VDI-WA
A1: Stoffdaten aus VDI Wärmeatlas
A3: Daten von N-Alkanen
F4: AN | G4: MG | H4: Tb | I4: Tc | J4: pc | K4: Vc | L4: Tm | M4: Tm CHEMCAD
D5: Summenformel | E5: Strukturformel | F5: Atomzahl | G5: Molgewicht | H5: Siedepunkt | I5: krit. Temperatur | J5: krit. Druck | K5: krit. Volumen | L5: Schmelztempeartur
G6: g/mol | H6: K | I6: K | J6: bar,a | K6: cm³/mol | L6: K
A7: 0 | B7: Methan | C7: (CH2)n | D7: CH4 | E7: CH4 | F7: 5 | G7: 16.043 | H7: 111.6 | I7: 190.4 | J7: 46 | K7: 118 | L7: 90.7 | M7: 90.7
A8: 1 | B8: Ethan | D8: C2H6 | E8: CH3-CH3 | F8: 8 | G8: 30.07 | H8: 184.6 | I8: 305.4 | J8: 48.8 | K8: 148.3 | L8: 89.9 | M8: =-182.8+273.15 -> 90.35
A9: 2 | B9: Propan | C9: 1 | D9: C3H8 | E9: CH3-CH2-CH3 | F9: 11 | G9: 44.094 | H9: 231.1 | I9: 369.8 | J9: 42.2 | K9: 203 | L9: 85.5 | M9: 85.46
A10: 3 | B10: N-Butan | C10: 2 | D10: C4H10 | E10: CH3-(CH2)2-CH3 | F10: 14 | G10: 58.124 | H10: 272.7 | I10: 425.2 | J10: 38 | K10: 255 | L10: 134.8 | M10: 134.86
A11: 4 | B11: N-Pentan | C11: 3 | D11: C5H12 | E11: CH3-(CH2)3-CH3 | F11: 17 | G11: 72.151 | H11: 309.2 | I11: 469.7 | J11: 33.7 | K11: 304 | L11: 143.4 | M11: 143.42
A12: 5 | B12: N-Hexan | C12: 4 | D12: C6H14 | E12: CH3-(CH2)4-CH3 | F12: 20 | G12: 86.178 | H12: 341.9 | I12: 507.5 | J12: 30.1 | K12: 370 | L12: 177.8 | M12: 177.84
I48: Die homologe CH2-Reihe beginnt erst mit Propan, da hier die Zahl der CH2 Gruppen = 1 ist.
I49: Diese homologe Reihe besteht hier aus Propan bis Hexan. Alle hier dargestellten Funktionen lassen sich mit hohem Bestimmtheitsmass > 0,99 linear darstellen.
H66: Vc von Alkanen ab Propan: CH2=1
P67: 113.6
A68: Alkohole | B68: kritisches Volumen | P68: 17.5
E69: (CH2)n | F69: Vc | P69: =P67-P68 -> 96.1
F70: cm³/mol
A71: 1 | B71: Ethanol | C71: C2H5OH | D71: CH3(CH2)1OH | E71: =A71 -> 1 | F71: 167.1
A72: 2 | B72: n-Propanol | D72: CH3(CH2)2OH | E72: =A72 -> 2 | F72: 219
A73: 3 | B73: n-Butanol | D73: CH3(CH2)3OH | E73: 3 | F73: 275
A74: 4 | B74: n-Pentanol | D74: CH3(CH2)4OH | E74: 4 | F74: 326
H84: Vc von aliphatischen Alkoholen
